bitfinex/quotes_SOLUSD_20251204
["timestamp","ask_amount","ask_price","bid_price","bid_amount"]
[1764842227881,0.67,144.06,144.03,9.41654916]
[1764842228087,0.67,144.06,144.04,2.58968421]
[1764842230094,0.67,144.06,144.03,9.53254916]
[1764842232097,0.67,144.06,144.04,2.58968421]
[1764842232270,6.94123396,144.07,144.04,2.58968421]
[1764842232271,0.67,144.07,144.04,2.58968421]
[1764842233996,6.94080757,144.08,144.06,2.58968421]
[1764842234177,0.65,144.08,144.06,2.58968421]
[1764842234878,7.59062341,144.08,144.05,2.58968421]
[1764842235179,7.59062341,144.08,144.04,15.75225144]
[1764842235375,0.65,144.07,144.05,2.58968421]
[1764842235578,0.65,144.07,144.05,9.53165663]
[1764842239799,0.65,144.08,144.03,26.55743988]
[1764842240005,0.65,144.08,144.06,2.58968421]
[1764842246391,7.59068115,144.08,144.05,2.58968421]
[1764842247013,0.65,144.07,144.04,9.53197612]
[1764842247199,0.65,144.07,144.04,2.58968421]
[1764842248290,7.59117482,144.07,144.03,15.75274683]
[1764842248615,7.59117482,144.07,144.05,2.58968421]
[1764842248914,0.65,144.06,144.05,2.58968421]
[1764842250890,0.65,144.06,144.04,2.58968421]
[1764842251094,7.59156669,144.06,144.02,2.58968421]
[1764842251302,10.1812509,144.06,144.01,18.34351727]
[1764842251635,2.58968421,144.04,144.0,2.58968421]
[1764842251791,2.58968421,144.04,143.99,9.53432943]
[1764842251989,0.65,144.03,143.99,9.53432943]
[1764842252622,3.23968421,144.03,143.99,6.94464522]
[1764842253129,0.65,144.02,143.99,9.53432943]
[1764842253817,0.65,144.05,144.01,2.58968421]
[1764842254021,6.94165352,144.06,144.02,2.58968421]
[1764842254227,0.65,144.04,144.02,2.58968421]
[1764842254423,0.65,144.04,144.02,4.04981074]
[1764842258117,6.91901904,144.05,144.02,4.04981074]
[1764842259013,6.91901904,144.05,144.01,11.67349231]
[1764842259599,6.91901904,144.05,144.01,4.72981074]
[1764842260026,0.65,144.04,144.02,4.04981074]
[1764842260819,0.65,144.04,144.01,0.68]
[1764842261003,0.65,144.04,144.01,4.72981074]
[1764842261601,7.592874,144.04,144.01,4.72981074]
[1764842262626,7.592874,144.04,144.02,4.04981074]
[1764842262918,7.592874,144.04,144.01,4.72981074]
[1764842263118,7.592874,144.04,144.01,4.04981074]
[1764842263822,0.67,144.03,143.99,12.85975566]
[1764842264204,0.67,144.03,143.99,13.55975566]
[1764842264539,4.71981074,144.03,143.98,8.80994492]
[1764842264833,4.71981074,144.03,143.98,12.85975566]
[1764842264998,0.67,144.02,143.99,4.04981074]
[1764842266431,7.61388755,144.02,143.99,4.04981074]
[1764842266805,0.67,144.01,143.99,4.04981074]
[1764842271215,6.94388755,144.02,143.99,4.04981074]
[1764842271711,0.67,144.01,143.99,4.04981074]
[1764842273947,7.61401637,144.01,143.98,16.45532307]
[1764842274144,7.61401637,144.01,143.99,4.04981074]
[1764842279861,7.61401637,144.01,143.98,16.45532307]
[1764842280036,0.67,144.03,144.0,4.04981074]
[1764842280552,0.67,144.03,144.0,4.74981074]
[1764842281161,7.61299798,144.03,144.0,4.74981074]
[1764842281530,0.67,144.02,143.99,4.04981074]
[1764842281736,0.67,144.02,143.98,12.85975566]
[1764842282039,0.67,144.02,143.98,8.80994492]
[1764842282249,0.67,144.02,143.98,4.74981074]
[1764842283563,6.94396222,144.01,143.98,4.74981074]
[1764842283931,7.61396222,144.01,143.98,4.74981074]
[1764842285339,6.94396222,144.01,143.99,0.7]
[1764842285764,7.61396222,144.01,143.99,0.7]
[1764842286067,7.61396222,144.01,143.99,4.74981074]
[1764842286571,7.61396222,144.01,143.99,4.04981074]
[1764842287258,0.67,144.01,143.99,4.74981074]
[1764842287830,6.94370926,144.02,143.99,4.04981074]
[1764842288036,0.67,144.01,143.99,4.04981074]
[1764842288436,6.94370926,144.02,143.99,4.74981074]
[1764842288637,7.61370926,144.02,143.99,4.74981074]
[1764842291340,7.61370926,144.02,143.99,11.69472101]
[1764842291546,7.61370926,144.02,143.99,4.74981074]
[1764842291846,0.67,144.01,143.99,4.04981074]
[1764842292060,7.61370926,144.02,143.99,4.74981074]
[1764842292675,6.94370926,144.02,143.99,4.74981074]
[1764842292857,0.7,144.01,143.99,4.74981074]
[1764842293274,7.64404139,144.01,143.98,10.99501778]
[1764842293779,0.7,144.0,143.98,10.99501778]
[1764842293956,7.64404139,144.01,143.98,11.65501778]
[1764842296476,0.7,144.01,143.98,11.65501778]
[1764842298669,0.7,144.01,143.98,7.60520704]
[1764842298867,7.64402207,144.01,143.98,11.65501778]
[1764842304197,7.64402207,144.01,143.98,7.60520704]
[1764842304493,7.64402207,144.01,143.98,11.65501778]
[1764842305494,0.7,144.0,143.98,11.65501778]
[1764842305995,0.7,144.01,143.98,11.65501778]
[1764842306592,0.7,144.02,143.99,4.70981074]
[1764842307304,0.7,144.02,143.98,6.94520704]
[1764842307485,0.7,144.02,143.98,10.99501778]
[1764842307685,0.7,144.02,143.98,11.65501778]
[1764842309102,7.64389179,144.02,143.99,4.04981074]
[1764842309703,0.7,144.01,143.99,4.04981074]
[1764842310303,0.7,144.01,143.99,10.99472603]
[1764842310602,7.64389179,144.02,143.99,11.65472603]
[1764842310906,0.7,144.03,144.01,4.04981074]
[1764842311105,21.40564252,144.05,144.01,4.04981074]
[1764842311305,0.7,144.02,143.99,6.94491529]
[1764842311486,0.7,144.02,143.99,10.99472603]
[1764842312284,7.64348785,144.02,143.99,7.60491529]
[1764842312484,7.64348785,144.02,143.99,11.65472603]
[1764842312803,6.94348785,144.02,143.99,10.99472603]
[1764842313106,0.7,144.01,143.99,4.04981074]
[1764842314407,0.7,144.01,143.99,2.59303785]
[1764842315907,0.7,144.01,143.99,3.25303785]
[1764842316614,0.7,144.01,143.99,2.59303785]
[1764842317883,0.7,144.01,144.0,2.59303785]
[1764842318083,0.7,144.02,144.0,2.59303785]
[1764842319320,0.7,144.02,144.01,2.59303785]
[1764842320320,0.7,144.02,144.0,9.53737225]
[1764842320509,0.7,144.02,144.0,6.9443344]
[1764842321717,0.7,144.02,143.99,9.5378345]
[1764842322801,7.64352115,144.02,143.99,9.5378345]
[1764842323201,7.64352115,144.02,143.99,10.2178345]
[1764842323502,6.94299798,144.03,143.99,2.59303785]
[1764842323807,0.72,144.01,143.99,2.59303785]
[1764842327200,0.72,144.01,143.99,3.27303785]
[1764842327603,0.72,144.01,143.99,2.59303785]
[1764842328704,7.66411222,144.01,143.99,2.59303785]
[1764842329416,0.72,144.0,143.99,2.59303785]
[1764842330742,0.72,144.01,143.99,2.59303785]
[1764842333238,7.66397385,144.01,143.99,2.59303785]
[1764842334042,0.72,144.0,143.99,2.59303785]
[1764842335738,6.94299798,144.03,143.99,2.59303785]
[1764842336036,0.72,144.01,143.99,2.59303785]
[1764842336741,0.72,144.01,143.97,31.09454022]
[1764842336923,0.72,144.01,143.98,2.59303785]
[1764842337843,0.72,144.01,143.98,7.62519384]
[1764842338016,0.72,144.01,144.0,2.59303785]
[1764842338711,0.72,144.02,144.0,2.59303785]
[1764842339346,6.94299798,144.03,144.01,2.59303785]
[1764842339524,7.66299798,144.03,144.01,2.59303785]
[1764842339724,0.72,144.03,144.01,2.59303785]
[1764842341948,7.66301953,144.03,144.0,6.94443459]
[1764842342147,7.64301953,144.03,144.01,2.59303785]
[1764842342844,7.64301953,144.03,144.0,10.25747244]
[1764842344943,0.7,144.03,144.0,10.25747244]
[1764842345530,0.7,144.03,144.01,2.59303785]
[1764842346053,7.64301236,144.03,143.99,6.94481998]
[1764842346247,7.64301236,144.03,143.99,9.53785783]
[1764842346434,0.7,144.02,143.99,9.53785783]
[1764842346840,7.64372855,144.02,143.98,2.59303785]
[1764842347351,0.7,144.01,143.98,2.59303785]
[1764842349039,7.64429743,144.01,143.98,2.59303785]
[1764842349427,0.7,144.0,143.98,2.59303785]
[1764842353555,0.7,144.0,143.97,31.81446127]
[1764842353556,7.64445109,144.0,143.97,2.79303785]
[1764842353753,0.68,143.99,143.97,0.2]
[1764842356857,10.2181981,143.99,143.97,0.2]
[1764842357054,7.62516025,143.99,143.97,0.2]
[1764842357358,0.68,143.98,143.97,0.2]
[1764842357759,7.62540908,143.98,143.97,0.2]
[1764842374354,10.21844693,143.98,143.97,0.2]
[1764842374688,17.85844693,143.98,143.97,0.2]
[1764842375067,15.26540908,143.98,143.97,0.2]
[1764842376280,17.85844693,143.98,143.97,0.2]
[1764842376484,7.62540908,143.98,143.97,0.2]
[1764842376688,11.68016726,143.98,143.97,0.2]
[1764842378411,7.62540908,143.98,143.97,0.2]
[1764842379484,14.57321481,143.98,143.97,0.2]
[1764842379789,7.62540908,143.98,143.97,0.2]
[1764842382680,13.8929051,143.99,143.97,0.2]
[1764842382879,7.65509937,143.99,143.97,4.25475818]
[1764842383685,7.65509937,143.99,143.97,0.2]
[1764842383999,7.65509937,143.99,143.97,4.92475818]
[1764842384000,6.94509937,143.99,143.97,4.92475818]
[1764842385382,6.94509937,143.99,143.97,0.87]
[1764842388002,7.65444444,144.0,143.97,0.87]
[1764842388190,6.94444444,144.0,143.97,0.87]
[1764842388391,7.65444444,144.0,143.97,0.87]
[1764842389009,7.65506561,143.99,143.97,0.87]
[1764842390718,4.76475818,143.98,143.97,0.2]
[1764842392286,0.71,143.98,143.97,0.2]
[1764842392490,4.76475818,143.98,143.97,0.2]
[1764842392715,11.71016726,143.98,143.97,0.2]
[1764842393289,7.65540908,143.98,143.97,0.2]
[1764842393490,11.71016726,143.98,143.97,0.2]
[1764842394402,7.65540908,143.98,143.97,0.2]
[1764842394615,11.71016726,143.98,143.97,0.2]
[1764842395501,7.65540908,143.98,143.97,0.2]
[1764842396598,6.94540908,143.98,143.97,0.2]
[1764842397117,11.71016726,143.98,143.97,0.2]
[1764842397616,7.65540908,143.98,143.97,0.2]
[1764842397917,11.71016726,143.98,143.97,0.2]
[1764842399196,7.65540908,143.98,143.97,0.2]
[1764842399899,6.94540908,143.98,143.97,0.2]
[1764842400120,6.94512309,143.99,143.97,0.2]
[1764842400311,6.94512309,143.99,143.97,0.87]
[1764842400497,6.94464329,144.0,143.97,4.92475818]
[1764842400700,7.65464329,144.0,143.97,0.2]
[1764842400892,6.94464329,144.0,143.98,0.67]
[1764842401097,7.65464329,144.0,143.97,4.25475818]
[1764842401296,7.65464329,144.0,143.97,4.92475818]
[1764842403822,7.65464329,144.0,143.97,0.87]
[1764842404023,0.71,143.99,143.97,0.2]
[1764842405933,7.65519555,143.99,143.97,0.2]
[1764842406135,6.94519555,143.99,143.97,0.2]
[1764842406636,7.65519555,143.99,143.97,0.2]
[1764842407631,10.99995373,143.99,143.97,0.2]
[1764842407835,0.71,143.98,143.97,0.2]
[1764842408036,10.99995373,143.99,143.97,0.2]
[1764842408225,0.71,143.98,143.97,0.2]
[1764842408418,11.70995373,143.99,143.97,0.2]
[1764842408618,0.71,143.98,143.97,0.2]
[1764842409022,6.94519555,143.99,143.97,4.92475818]
[1764842409334,21.56433248,144.01,143.97,0.87]
[1764842409335,7.65462143,144.0,143.97,0.87]
[1764842409523,11.70937961,144.0,143.97,0.2]
[1764842409723,0.71,143.99,143.97,0.2]
[1764842411335,6.94540908,143.98,143.97,0.2]
[1764842412515,7.65540908,143.98,143.97,0.2]
[1764842416045,6.94540908,143.98,143.97,0.2]
[1764842416348,7.63540908,143.98,143.97,0.2]
[1764842417941,7.63513095,143.99,143.97,0.2]
[1764842418125,6.94513095,143.99,143.97,0.2]
[1764842418329,6.94513095,143.99,143.97,0.91]
[1764842419626,6.94465235,144.0,143.97,4.96475818]
[1764842419849,7.63465235,144.0,143.97,0.91]
[1764842422240,7.63465235,144.0,143.97,4.96475818]
[1764842423133,13.89039468,144.02,143.99,4.05475818]
[1764842423346,6.94364791,144.02,143.99,4.05475818]
[1764842423540,7.63364791,144.02,143.99,0.71]
[1764842424051,24.99234809,144.02,143.99,0.71]
[1764842424348,0.69,144.01,143.97,4.96475818]
[1764842425254,10.99920262,144.0,143.97,0.2]
[1764842425748,6.94444444,144.0,143.97,4.96475818]
[1764842426146,6.94444444,144.0,143.98,0.71]
[1764842426839,7.60444444,144.0,143.97,0.2]
[1764842427150,7.605157,143.99,143.97,0.2]
[1764842429437,6.94462345,144.0,143.97,4.93475818]
[1764842429641,7.60462345,144.0,143.97,4.93475818]
[1764842429839,6.94412854,144.01,143.97,11.20047267]
[1764842430043,6.94412854,144.01,143.98,4.73475818]
[1764842430436,7.60412854,144.01,143.98,4.73475818]
[1764842432256,7.60412854,144.01,143.98,11.68011476]
[1764842432559,0.66,144.01,143.98,11.68011476]
[1764842432747,0.66,144.01,143.99,4.05475818]
[1764842433057,6.94374581,144.02,143.99,4.73475818]
[1764842433461,7.60374581,144.02,143.99,4.73475818]
[1764842433845,7.60374581,144.02,143.99,4.05475818]
[1764842433846,6.94374581,144.02,143.99,4.05475818]
[1764842434047,6.94374581,144.02,144.0,0.68]
[1764842434239,7.60374581,144.02,143.99,4.73475818]
[1764842434440,6.94318558,144.03,144.0,4.05475818]
[1764842434651,7.60318558,144.03,144.0,4.73475818]
[1764842434968,7.60318558,144.03,144.01,4.05475818]
[1764842435859,0.66,144.02,143.99,4.05475818]
[1764842436042,0.66,144.02,143.98,4.73475818]
[1764842436848,0.66,144.02,143.97,11.20035301]
[1764842437055,4.71475818,144.02,143.97,11.20035301]
[1764842437242,4.71475818,144.02,143.97,11.88035301]
[1764842437443,0.66,144.01,143.97,11.88035301]
[1764842438051,0.66,144.01,143.98,0.68]
[1764842438247,0.66,144.01,143.98,4.73475818]
[1764842438452,0.66,144.01,143.98,3.27355195]
[1764842438673,7.6041923,144.01,143.98,3.27355195]
[1764842439171,7.6041923,144.01,143.98,10.21893754]
[1764842440167,7.6041923,144.01,143.98,0.68]
[1764842441062,7.6041923,144.01,143.97,2.79355195]
[1764842441063,0.66,144.0,143.97,2.79355195]
[1764842441271,0.66,144.0,143.97,3.47355195]
[1764842441465,0.66,144.0,143.97,2.79355195]
[1764842441946,0.66,144.0,143.97,0.88]
[1764842442156,7.6046101,144.0,143.97,0.2]
[1764842442370,10.19816205,144.0,143.97,0.2]
[1764842442580,0.66,143.99,143.97,0.2]
[1764842443287,0.66,143.99,143.97,7.14588793]
[1764842443485,7.5946101,144.0,143.97,7.83588793]
[1764842443689,6.94419251,144.01,143.98,2.59355195]
[1764842443987,7.59419251,144.01,143.98,3.28355195]
[1764842444371,0.65,144.01,143.98,10.22870613]
[1764842445489,9.53722497,144.02,143.98,10.22870613]
[1764842445490,0.65,144.05,144.0,2.59355195]
[1764842445789,0.65,144.05,144.02,2.59355195]
[1764842446187,0.65,144.05,144.02,3.28355195]
[1764842446379,7.59203401,144.05,144.02,3.28355195]
[1764842448567,6.94203401,144.05,144.02,10.22696554]
[1764842448767,7.5917522,144.06,144.03,3.28355195]
[1764842449089,6.9417522,144.06,144.04,2.59355195]
[1764842449388,6.9417522,144.06,144.04,3.28355195]
[1764842449571,6.94058856,144.08,144.04,2.59355195]
[1764842449780,0.65,144.07,144.04,10.22601449]
[1764842450284,0.65,144.07,144.04,3.28355195]
[1764842450792,3.24355195,144.07,144.02,9.53686371]
[1764842450986,3.24355195,144.07,144.01,23.92262617]
[1764842451171,0.67,144.06,144.02,2.59355195]
[1764842451567,6.94203401,144.05,144.01,19.57241595]
[1764842452080,7.61203401,144.05,144.01,19.57241595]
[1764842452796,0.67,144.04,144.01,19.57241595]
[1764842453478,7.61259164,144.04,144.01,3.26355195]
[1764842453887,6.94259164,144.04,144.01,2.59355195]
[1764842454079,7.61259164,144.04,144.01,3.26355195]
[1764842454282,0.67,144.03,144.0,2.59355195]
[1764842454601,6.94259164,144.04,144.0,2.59355195]
[1764842454772,7.61259164,144.04,144.0,9.53797026]
[1764842454972,7.61259164,144.04,144.01,3.26355195]
[1764842455182,6.94224003,144.05,144.02,2.59355195]
[1764842455388,7.61224003,144.05,144.02,3.26355195]
[1764842455897,6.94224003,144.05,144.02,2.59355195]
[1764842456091,0.67,144.04,144.02,2.59355195]
[1764842457010,0.67,144.04,144.01,2.59355195]
[1764842457179,0.67,144.04,144.01,3.26355195]
[1764842457883,7.61259185,144.04,144.01,3.26355195]
[1764842458099,7.61259185,144.04,144.01,2.59355195]
[1764842458298,0.67,144.03,144.0,9.53779215]
[1764842458603,7.61259185,144.04,144.01,10.20739722]
[1764842458791,7.61259185,144.04,144.02,2.59355195]
[1764842458994,6.94259185,144.04,144.02,2.59355195]
[1764842459189,0.67,144.05,144.02,2.59355195]
[1764842459190,6.94220227,144.05,144.02,2.59355195]
[1764842459576,7.61174809,144.06,144.03,3.26355195]
[1764842460183,7.61174809,144.06,144.04,2.59355195]
[1764842460184,0.67,144.06,144.04,2.59355195]
[1764842460385,0.67,144.08,144.05,2.59355195]
[1764842460589,0.67,144.08,144.04,3.26355195]
[1764842461281,24.29037406,144.09,144.05,0.67]
[1764842461604,7.61084793,144.08,144.05,3.26355195]
[1764842461907,7.61084793,144.08,144.06,2.59355195]
[1764842462408,0.67,144.1,144.07,2.59355195]
[1764842462704,0.67,144.1,144.07,3.26355195]
[1764842462893,0.67,144.1,144.07,2.59355195]
[1764842463401,7.60984849,144.1,144.06,2.59355195]
[1764842463711,7.60883401,144.12,144.09,2.59355195]
[1764842464201,7.60883401,144.12,144.09,3.26355195]
[1764842464583,6.93822326,144.13,144.1,2.59355195]
[1764842464911,7.60822326,144.13,144.1,2.59355195]
[1764842466078,7.60822326,144.13,144.1,3.26355195]
[1764842468302,7.60822326,144.13,144.1,0.67]
[1764842468533,7.60822326,144.13,144.1,3.26355195]
[1764842468803,0.67,144.12,144.1,2.59355195]
[1764842469210,0.67,144.13,144.1,10.20290432]
[1764842469407,19.9370478,144.15,144.1,10.20290432]
[1764842469408,7.60742184,144.15,144.11,3.26355195]
[1764842469784,0.67,144.15,144.12,2.59355195]
[1764842470811,7.60740699,144.15,144.12,2.59355195]
[1764842471186,6.93740699,144.15,144.13,3.26355195]
[1764842471399,23.35617409,144.16,144.13,3.26355195]
[1764842472410,23.35617409,144.16,144.13,0.67]
[1764842473099,7.6068768,144.16,144.13,7.60816652]
[1764842473924,7.6068768,144.16,144.13,10.20171847]
[1764842474105,0.67,144.16,144.13,7.60816652]
[1764842475407,0.67,144.16,144.13,10.20171847]
[1764842477215,7.60697881,144.16,144.13,8.80994492]
[1764842477417,6.93697881,144.16,144.14,0.71]
[1764842477625,0.72,144.17,144.14,3.30355195]
[1764842477829,0.72,144.17,144.14,0.71]
[1764842478128,0.72,144.17,144.14,3.30355195]
[1764842478322,0.72,144.17,144.13,18.34165834]
[1764842478628,7.65641324,144.17,144.13,19.05165834]
[1764842479140,0.72,144.16,144.13,19.05165834]
[1764842479430,7.65682101,144.16,144.13,19.05165834]
[1764842480025,7.65682101,144.16,144.13,12.11349687]
[1764842480210,0.72,144.15,144.12,3.30355195]
[1764842480522,7.65682101,144.16,144.13,0.71]
[1764842480732,7.65682101,144.16,144.13,3.30355195]
[1764842481111,6.93682101,144.16,144.13,3.30355195]
[1764842481617,7.65647011,144.17,144.14,3.30355195]
[1764842482418,7.75492977,144.2,144.15,0.71]
[1764842482735,7.75492977,144.2,144.17,2.59355195]
[1764842483234,7.75492977,144.2,144.17,3.30355195]
[1764842483736,0.1,144.2,144.18,3.30355195]
[1764842484334,0.1,144.2,144.19,3.30355195]
[1764842484833,0.1,144.2,144.19,12.11349687]
[1764842485223,0.1,144.2,144.19,19.04879057]
[1764842488051,0.1,144.2,144.19,81.34879057]
[1764842490155,0.1,144.2,144.19,19.04879057]
[1764842491761,0.1,144.2,144.19,16.45523862]
[1764842492057,0.1,144.2,144.19,19.04879057]
[1764842492553,0.1,144.2,144.19,16.45523862]
[1764842492759,0.1,144.2,144.19,18.33879057]
[1764842493137,0.1,144.2,144.18,8.80994492]
[1764842493138,0.82,144.2,144.18,8.80994492]
[1764842493339,10.34856504,144.2,144.17,8.80994492]
[1764842493742,0.72,144.19,144.17,8.80994492]
[1764842494146,0.72,144.19,144.16,6.93664265]
[1764842495449,7.65532368,144.19,144.16,8.80994492]
[1764842495655,6.93532368,144.19,144.16,8.80994492]
[1764842495855,7.65532368,144.19,144.16,8.80994492]
[1764842496057,0.72,144.18,144.16,8.80994492]
[1764842496440,7.65532368,144.19,144.16,15.74661586]
[1764842496645,7.75489726,144.2,144.16,18.34016781]
[1764842496954,7.75489726,144.2,144.17,3.30355195]
[1764842497138,0.72,144.19,144.17,2.59355195]
[1764842498365,0.72,144.19,144.16,19.78887274]
[1764842498767,7.65538406,144.19,144.16,8.80994492]
[1764842498972,4.04225688,144.18,144.14,20.35112088]
[1764842499265,4.04225688,144.18,144.14,8.80994492]
[1764842499266,0.72,144.18,144.14,8.80994492]
[1764842499453,0.72,144.17,144.14,20.49979022]
[1764842500556,7.65642502,144.17,144.14,13.5622018]
[1764842500763,7.65642502,144.17,144.14,12.8522018]
[1764842501568,10.9780316,144.18,144.14,4.04225688]
[1764842501751,0.72,144.16,144.13,10.98025739]
[1764842502157,0.72,144.16,144.13,11.64025739]
[1764842502975,0.72,144.16,144.14,4.04225688]
[1764842503754,0.66,144.17,144.14,4.04225688]
[1764842505082,4.04225688,144.16,144.12,4.04225688]
[1764842505384,0.66,144.17,144.11,11.66225688]
[1764842505385,4.04225688,144.15,144.11,11.66225688]
[1764842505984,7.59769945,144.14,144.11,12.36225688]
[1764842506576,6.93769945,144.14,144.1,15.7494606]
[1764842506779,6.93769945,144.14,144.09,4.04225688]
[1764842506780,4.70225688,144.13,144.09,4.04225688]
[1764842506988,0.66,144.13,144.09,4.04225688]
[1764842507184,0.66,144.12,144.09,4.04225688]
[1764842507887,0.66,144.12,144.09,10.98223318]
[1764842510587,0.66,144.12,144.1,4.04225688]
[1764842510795,0.66,144.13,144.1,10.98158118]
[1764842511377,0.66,144.13,144.11,4.04225688]
[1764842511573,0.66,144.13,144.1,6.9393243]
[1764842511574,0.66,144.13,144.1,11.68158118]
[1764842512294,7.59821743,144.13,144.09,10.98222045]
[1764842512478,7.59821743,144.13,144.1,4.04225688]
[1764842512681,0.66,144.12,144.1,4.04225688]
[1764842512890,0.66,144.12,144.1,10.98186711]
[1764842513698,10.98013109,144.14,144.1,10.98186711]
[1764842513896,0.66,144.13,144.1,4.04225688]
[1764842515083,0.66,144.13,144.1,10.98180512]
[1764842515292,0.66,144.13,144.1,6.93954824]
[1764842515495,0.66,144.13,144.1,10.98180512]
[1764842516376,7.59842336,144.13,144.1,4.04225688]
[1764842516906,0.66,144.12,144.09,4.04225688]
[1764842517805,4.70225688,144.12,144.08,20.35112088]
[1764842517991,4.70225688,144.12,144.08,16.308864]
[1764842518202,7.5991437,144.11,144.08,20.35112088]
[1764842518708,0.66,144.1,144.07,10.98311195]
[1764842519582,0.66,144.1,144.07,4.04225688]
[1764842520298,7.59997673,144.1,144.07,4.04225688]
[1764842520507,7.59997673,144.1,144.06,11.66225688]
[1764842520716,0.66,144.09,144.06,11.66225688]
[1764842520883,0.66,144.09,144.05,4.04225688]
[1764842521708,39.31353037,144.1,144.04,16.45228906]
[1764842521709,7.59997673,144.1,144.07,4.04225688]
[1764842522010,0.66,144.1,144.07,10.98329288]
[1764842522208,0.66,144.1,144.07,11.68329288]
[1764842522589,0.66,144.1,144.07,7.641036]
[1764842522903,0.66,144.1,144.07,11.68329288]
[1764842524117,6.93917839,144.11,144.08,0.7]
[1764842524297,7.59917839,144.11,144.08,0.7]
[1764842524611,7.59917839,144.11,144.07,10.98329288]
[1764842524813,0.66,144.1,144.07,11.68329288]
[1764842526897,7.59968679,144.1,144.07,11.68329288]
[1764842527093,0.66,144.12,144.09,4.04225688]
[1764842527434,21.49405673,144.16,144.11,12.8522018]
[1764842527599,4.04225688,144.14,144.09,16.308864]
[1764842527797,4.04225688,144.14,144.09,20.35112088]
[1764842528109,0.66,144.13,144.09,21.05112088]
[1764842528415,0.66,144.13,144.11,4.04225688]
[1764842529320,7.59736903,144.15,144.12,4.04225688]
[1764842529526,0.66,144.14,144.12,4.04225688]
[1764842531329,0.66,144.14,144.11,7.6390292]
[1764842531626,0.66,144.14,144.12,4.04225688]
[1764842531930,0.66,144.14,144.11,11.68128608]
[1764842532631,0.66,144.14,144.12,6.93865009]
[1764842533630,7.61696299,144.16,144.12,11.70090697]
[1764842533804,0.68,144.18,144.15,4.04225688]
[1764842534003,0.68,144.18,144.16,4.04225688]
[1764842535020,4.14225688,144.2,144.16,4.76225688]
[1764842535021,7.71487031,144.2,144.16,4.76225688]
[1764842535220,0.68,144.19,144.16,4.76225688]
[1764842535936,0.68,144.19,144.16,11.69870104]
[1764842537019,0.68,144.19,144.16,29.04054343]
[1764842537220,0.68,144.19,144.16,11.69870104]
[1764842538541,0.68,144.19,144.17,4.04225688]
[1764842539639,7.03484752,144.2,144.17,4.04225688]
[1764842539865,0.1,144.2,144.17,11.69847574]
[1764842540223,0.1,144.2,144.18,4.04225688]
[1764842540542,0.78,144.2,144.18,4.04225688]
[1764842544346,7.71491251,144.2,144.16,6.9366412]
[1764842544647,7.71491251,144.2,144.17,4.04225688]
[1764842544855,0.68,144.19,144.17,4.04225688]
[1764842545265,0.68,144.19,144.17,10.9782764]
[1764842545438,0.1,144.2,144.18,13.5722018]
[1764842545641,0.1,144.2,144.19,4.04225688]
[1764842545830,0.1,144.2,144.19,4.76225688]
[1764842546161,0.1,144.2,144.19,4.04225688]
[1764842551335,0.1,144.2,144.18,20.50769348]
[1764842553363,0.1,144.2,144.18,19.78769348]
[1764842553534,0.1,144.2,144.18,20.50769348]
[1764842554952,0.1,144.2,144.19,4.04225688]
[1764842558062,0.1,144.2,144.18,19.78769348]
[1764842558242,0.78,144.2,144.18,12.8522018]
[1764842558639,4.04225688,144.19,144.13,0.72]
[1764842558845,7.71489839,144.2,144.12,10.9809191]
[1764842558846,4.04225688,144.16,144.12,10.9809191]
[1764842559456,0.68,144.15,144.12,11.7009191]
[1764842559662,0.68,144.15,144.12,10.9809191]
[1764842559867,0.68,144.15,144.12,11.7009191]
[1764842560244,10.97884598,144.17,144.13,0.72]
[1764842560445,0.68,144.16,144.13,3.30786693]
[1764842560961,0.68,144.16,144.12,7.65866222]
[1764842561167,0.68,144.16,144.13,2.58786693]
[1764842562166,0.68,144.16,144.13,9.5260129]
[1764842562657,0.68,144.16,144.13,6.93814597]
[1764842562859,0.68,144.16,144.13,9.5260129]
[1764842566359,7.61682105,144.16,144.13,6.93814597]
[1764842566559,7.61682105,144.16,144.12,9.52634329]
[1764842566768,2.58786693,144.14,144.1,8.80994492]
[1764842567073,2.58786693,144.13,144.09,15.75000663]